[Event "Titled Tuesday Blitz July 4 Early 2023"]
[White "Gomez Barrera, Javiera Belen"]
[Black "Ashraf, Artin"]
[WhiteFideId "3418723"]
[BlackFideId "22514805"]
[WhiteElo "2448"]
[BlackElo "2731"]
[Result "0-1"]
[Round "6"]
[TimeControl "180+2"]
[Date "2023.07.04"]
[WhiteClock "0:00:05"]
[BlackClock "0:00:07"]
[Board "118"]

1. e4 {[%clk 0:03:00]}  c5 {[%clk 0:02:59]} 2. Nf3 {[%clk 0:03:01]}  d6 {[%clk 0:02:59]} 3. d4 {[%clk 0:03:01]}  cxd4 {[%clk 0:03:00]} 4. Nxd4 {[%clk 0:03:02]}  Nf6 {[%clk 0:03:00]} 5. Nc3 {[%clk 0:03:02]}  a6 {[%clk 0:03:01]} 6. Be3 {[%clk 0:03:02]}  e6 {[%clk 0:03:00]} 7. f3 {[%clk 0:02:59]}  b5 {[%clk 0:03:00]} 8. g4 {[%clk 0:02:57]}  Bb7 {[%clk 0:02:54]} 9. Qd2 {[%clk 0:02:50]}  Nfd7 {[%clk 0:02:48]} 10. a4 {[%clk 0:02:50]}  b4 {[%clk 0:02:46]} 11. Na2 {[%clk 0:02:51]}  a5 {[%clk 0:02:20]} 12. Bb5 {[%clk 0:02:50]}  Be7 {[%clk 0:02:18]} 13. c3 {[%clk 0:02:46]}  bxc3 {[%clk 0:02:15]} 14. Nxc3 {[%clk 0:02:47]}  O-O {[%clk 0:02:14]} 15. O-O {[%clk 0:02:47]}  Nb6 {[%clk 0:02:05]} 16. Rac1 {[%clk 0:02:41]}  N8d7 {[%clk 0:02:04]} 17. Bc6 {[%clk 0:02:35]}  Nc4 {[%clk 0:02:02]} 18. Qe2 {[%clk 0:02:33]}  Nxe3 {[%clk 0:01:59]} 19. Qxe3 {[%clk 0:02:28]}  e5 {[%clk 0:01:30]} 20. Bxb7 {[%clk 0:02:28]}  exd4 {[%clk 0:01:29]} 21. Qxd4 {[%clk 0:02:29]}  Rb8 {[%clk 0:01:28]} 22. Bc6 {[%clk 0:02:20]}  Bf6 {[%clk 0:00:55]} 23. Qd2 {[%clk 0:02:18]}  Qb6+ {[%clk 0:00:52]} 24. Kh1 {[%clk 0:02:18]}  Qxc6 {[%clk 0:00:52]} 25. Nd5 {[%clk 0:02:19]}  Qxa4 {[%clk 0:00:48]} 26. Rc7 {[%clk 0:02:14]}  Rfc8 {[%clk 0:00:42]} 27. Rfc1 {[%clk 0:02:13]}  Rxc7 {[%clk 0:00:41]} 28. Rxc7 {[%clk 0:02:14]}  Qa1+ {[%clk 0:00:32]} 29. Kg2 {[%clk 0:01:23]}  Rxb2 {[%clk 0:00:28]} 30. Nxf6+ {[%clk 0:01:07]}  gxf6 {[%clk 0:00:23]} 31. Rc2 {[%clk 0:01:07]}  Rxc2 {[%clk 0:00:22]} 32. Qxc2 {[%clk 0:01:07]}  a4 {[%clk 0:00:19]} 33. h4 {[%clk 0:00:13]}  a3 {[%clk 0:00:14]} 34. Qc8+ {[%clk 0:00:14]}  Nf8 {[%clk 0:00:13]} 35. g5 {[%clk 0:00:14]}  a2 {[%clk 0:00:10]} 36. gxf6 {[%clk 0:00:05]}  Qxf6 {[%clk 0:00:07]} 0-1


[Site "https://www.chess.com"]

[Event "Titled Tuesday Blitz July 4 Early 2023"]
[White "Streltsov, Alexey"]
[Black "Vlassov, Nikolai"]
[WhiteFideId "24104434"]
[BlackFideId "4103360"]
[WhiteElo "2430"]
[BlackElo "2610"]
[Result "1-0"]
[Round "6"]
[TimeControl "180+2"]
[Date "2023.07.04"]
[WhiteClock "0:01:11"]
[BlackClock "0:00:19"]
[Board "121"]

1. d4 {[%clk 0:03:00]}  Nf6 {[%clk 0:02:59]} 2. Nc3 {[%clk 0:03:01]}  d5 {[%clk 0:02:59]} 3. Bf4 {[%clk 0:03:01]}  e6 {[%clk 0:02:58]} 4. Nb5 {[%clk 0:03:01]}  Na6 {[%clk 0:02:58]} 5. e3 {[%clk 0:03:02]}  c6 {[%clk 0:02:53]} 6. Nc3 {[%clk 0:03:01]}  Bb4 {[%clk 0:02:52]} 7. Bxa6 {[%clk 0:02:59]}  bxa6 {[%clk 0:02:52]} 8. Ne2 {[%clk 0:03:00]}  O-O {[%clk 0:02:46]} 9. O-O {[%clk 0:03:00]}  a5 {[%clk 0:02:42]} 10. a3 {[%clk 0:03:01]}  Be7 {[%clk 0:02:31]} 11. Qd3 {[%clk 0:03:01]}  Qb6 {[%clk 0:02:26]} 12. Na4 {[%clk 0:03:01]}  Qb5 {[%clk 0:02:24]} 13. Qxb5 {[%clk 0:02:39]}  cxb5 {[%clk 0:02:23]} 14. Nc5 {[%clk 0:02:40]}  Bxc5 {[%clk 0:02:13]} 15. dxc5 {[%clk 0:02:41]}  b4 {[%clk 0:02:05]} 16. axb4 {[%clk 0:02:42]}  axb4 {[%clk 0:02:05]} 17. c6 {[%clk 0:02:33]}  a5 {[%clk 0:02:01]} 18. Nd4 {[%clk 0:02:28]}  Re8 {[%clk 0:01:19]} 19. Nb3 {[%clk 0:02:07]}  e5 {[%clk 0:01:10]} 20. Bg3 {[%clk 0:02:06]}  a4 {[%clk 0:01:06]} 21. Nc5 {[%clk 0:01:53]}  a3 {[%clk 0:01:06]} 22. bxa3 {[%clk 0:01:49]}  bxa3 {[%clk 0:01:06]} 23. Rfb1 {[%clk 0:01:48]}  Ne4 {[%clk 0:00:51]} 24. Nd3 {[%clk 0:01:14]}  f6 {[%clk 0:00:48]} 25. f3 {[%clk 0:01:14]}  Nd2 {[%clk 0:00:38]} 26. Rd1 {[%clk 0:01:11]}  Nc4 {[%clk 0:00:38]} 27. Nb4 {[%clk 0:01:11]}  Nxe3 {[%clk 0:00:33]} 28. Rd3 {[%clk 0:01:11]}  d4 {[%clk 0:00:32]} 29. Rdxa3 {[%clk 0:01:12]}  Bf5 {[%clk 0:00:19]} 30. Rxa8 {[%clk 0:01:11]} 1-0


[Site "https://www.chess.com"]

[Event "Titled Tuesday Blitz July 4 Early 2023"]
[White "Zacurdajev, Dmitry"]
[Black "Czerw, Dawid"]
[WhiteFideId "4196309"]
[BlackFideId "1145746"]
[WhiteElo "2427"]
[BlackElo "2587"]
[Result "1-0"]
[Round "6"]
[TimeControl "180+2"]
[Date "2023.07.04"]
[WhiteClock "0:00:05"]
[BlackClock "0:00:03"]
[Board "124"]

1. d4 {[%clk 0:03:00]}  d5 {[%clk 0:03:00]} 2. c4 {[%clk 0:03:00]}  c6 {[%clk 0:03:00]} 3. Nc3 {[%clk 0:02:59]}  Nf6 {[%clk 0:03:01]} 4. Nf3 {[%clk 0:02:58]}  a6 {[%clk 0:03:01]} 5. c5 {[%clk 0:02:52]}  b6 {[%clk 0:03:01]} 6. cxb6 {[%clk 0:02:52]}  Qxb6 {[%clk 0:03:02]} 7. Na4 {[%clk 0:02:44]}  Qc7 {[%clk 0:03:02]} 8. e3 {[%clk 0:02:36]}  e6 {[%clk 0:02:56]} 9. Bd3 {[%clk 0:02:34]}  Nbd7 {[%clk 0:02:56]} 10. O-O {[%clk 0:02:23]}  c5 {[%clk 0:02:55]} 11. dxc5 {[%clk 0:02:24]}  Nxc5 {[%clk 0:02:55]} 12. Nxc5 {[%clk 0:02:24]}  Bxc5 {[%clk 0:02:54]} 13. b3 {[%clk 0:02:22]}  O-O {[%clk 0:02:41]} 14. Bb2 {[%clk 0:02:22]}  Qe7 {[%clk 0:02:40]} 15. Rc1 {[%clk 0:02:20]}  Bd6 {[%clk 0:02:38]} 16. Ne5 {[%clk 0:02:16]}  Bb7 {[%clk 0:02:33]} 17. Nc6 {[%clk 0:02:00]}  Bxc6 {[%clk 0:02:16]} 18. Rxc6 {[%clk 0:02:01]}  a5 {[%clk 0:02:10]} 19. h3 {[%clk 0:01:43]}  Rfc8 {[%clk 0:01:58]} 20. Bxf6 {[%clk 0:01:42]}  gxf6 {[%clk 0:01:58]} 21. Bxh7+ {[%clk 0:01:42]}  Kg7 {[%clk 0:01:46]} 22. Rxc8 {[%clk 0:01:37]}  Rxc8 {[%clk 0:01:47]} 23. Bd3 {[%clk 0:01:32]}  f5 {[%clk 0:01:47]} 24. Qa1+ {[%clk 0:01:21]}  Qf6 {[%clk 0:01:40]} 25. Rd1 {[%clk 0:00:56]}  Rc3 {[%clk 0:01:32]} 26. Kf1 {[%clk 0:00:50]}  Be5 {[%clk 0:01:23]} 27. Qb1 {[%clk 0:00:51]}  f4 {[%clk 0:01:15]} 28. exf4 {[%clk 0:00:35]}  Qxf4 {[%clk 0:01:14]} 29. Be2 {[%clk 0:00:22]}  Bd4 {[%clk 0:00:38]} 30. Bf3 {[%clk 0:00:20]}  Qh4 {[%clk 0:00:33]} 31. Rd2 {[%clk 0:00:17]}  Qf4 {[%clk 0:00:20]} 32. Qd1 {[%clk 0:00:18]}  Bc5 {[%clk 0:00:15]} 33. Rc2 {[%clk 0:00:15]}  Rxc2 {[%clk 0:00:11]} 34. Qxc2 {[%clk 0:00:16]}  Qd4 {[%clk 0:00:11]} 35. g3 {[%clk 0:00:11]}  f5 {[%clk 0:00:11]} 36. Kg2 {[%clk 0:00:11]}  Kf6 {[%clk 0:00:11]} 37. Qe2 {[%clk 0:00:09]}  e5 {[%clk 0:00:11]} 38. h4 {[%clk 0:00:07]}  e4 {[%clk 0:00:10]} 39. Bh5 {[%clk 0:00:08]}  Qe5 {[%clk 0:00:07]} 40. Be8 {[%clk 0:00:08]}  Qxe8 {[%clk 0:00:05]} 41. h5 {[%clk 0:00:08]}  Kg5 {[%clk 0:00:05]} 42. Qc2 {[%clk 0:00:07]}  Bd6 {[%clk 0:00:03]} 43. Qd2+ {[%clk 0:00:05]}  Kxh5 {[%clk 0:00:03]} 44. Qxd5 {[%clk 0:00:06]}  Qe5 {[%clk 0:00:03]} 45. Qf7+ {[%clk 0:00:06]}  Kg5 {[%clk 0:00:03]} 46. Qg8+ {[%clk 0:00:05]}  Kf6 {[%clk 0:00:03]} 47. Qa8 {[%clk 0:00:04]}  e3 {[%clk 0:00:02]} 48. Qh8+ {[%clk 0:00:04]}  Ke6 {[%clk 0:00:02]} 49. Qe8+ {[%clk 0:00:05]}  Kd5 {[%clk 0:00:02]} 50. Qb5+ {[%clk 0:00:05]}  Kd4 {[%clk 0:00:03]} 51. Qc4# {[%clk 0:00:05]} 1-0


[Site "https://www.chess.com"]

[Event "Titled Tuesday Blitz July 4 Early 2023"]
[White "Grossboss19"]
[Black "Moral Garcia, Serafin"]
[BlackFideId "2201925"]
[WhiteElo "2417"]
[BlackElo "2581"]
[Result "1-0"]
[Round "6"]
[TimeControl "180+2"]
[Date "2023.07.04"]
[WhiteClock "0:00:10"]
[BlackClock "0:00:55"]
[Board "128"]

1. c4 {[%clk 0:02:50]}  e5 {[%clk 0:02:59]} 2. Nf3 {[%clk 0:02:47]}  Nc6 {[%clk 0:02:54]} 3. Nc3 {[%clk 0:02:46]}  Nf6 {[%clk 0:02:54]} 4. d4 {[%clk 0:02:43]}  exd4 {[%clk 0:02:53]} 5. Nxd4 {[%clk 0:02:44]}  Bb4 {[%clk 0:02:54]} 6. Nc2 {[%clk 0:02:39]}  Bxc3+ {[%clk 0:02:54]} 7. bxc3 {[%clk 0:02:40]}  Ne5 {[%clk 0:02:54]} 8. e3 {[%clk 0:02:38]}  d6 {[%clk 0:02:51]} 9. Be2 {[%clk 0:02:34]}  Be6 {[%clk 0:02:50]} 10. Na3 {[%clk 0:02:16]}  O-O {[%clk 0:02:49]} 11. O-O {[%clk 0:02:02]}  Qd7 {[%clk 0:02:47]} 12. f3 {[%clk 0:01:53]}  Qc6 {[%clk 0:02:40]} 13. Qd4 {[%clk 0:01:51]}  Rfe8 {[%clk 0:02:39]} 14. e4 {[%clk 0:01:51]}  Ned7 {[%clk 0:02:34]} 15. Bg5 {[%clk 0:01:39]}  h6 {[%clk 0:02:33]} 16. Bh4 {[%clk 0:01:39]}  Qa4 {[%clk 0:02:33]} 17. Nb5 {[%clk 0:01:33]}  Qa5 {[%clk 0:02:30]} 18. a4 {[%clk 0:01:16]}  a6 {[%clk 0:02:29]} 19. Na3 {[%clk 0:01:11]}  Qc5 {[%clk 0:02:28]} 20. Bf2 {[%clk 0:01:05]}  Qa5 {[%clk 0:02:19]} 21. Bh4 {[%clk 0:00:59]}  Nh7 {[%clk 0:02:12]} 22. Nc2 {[%clk 0:00:52]}  Nc5 {[%clk 0:02:09]} 23. Ra3 {[%clk 0:00:52]}  Qb6 {[%clk 0:02:07]} 24. Ne3 {[%clk 0:00:49]}  Bd7 {[%clk 0:02:03]} 25. Bf2 {[%clk 0:00:47]}  Nxa4 {[%clk 0:01:59]} 26. Nd5 {[%clk 0:00:46]}  Qxd4 {[%clk 0:01:59]} 27. cxd4 {[%clk 0:00:45]}  Rac8 {[%clk 0:01:53]} 28. Rb1 {[%clk 0:00:44]}  b6 {[%clk 0:01:34]} 29. Bd1 {[%clk 0:00:39]}  b5 {[%clk 0:01:29]} 30. Be2 {[%clk 0:00:31]}  c6 {[%clk 0:01:25]} 31. Nb4 {[%clk 0:00:25]}  Ra8 {[%clk 0:01:24]} 32. c5 {[%clk 0:00:24]}  dxc5 {[%clk 0:01:24]} 33. dxc5 {[%clk 0:00:25]}  a5 {[%clk 0:01:23]} 34. Nd3 {[%clk 0:00:25]}  Be6 {[%clk 0:01:21]} 35. Ne5 {[%clk 0:00:22]}  Rec8 {[%clk 0:01:20]} 36. Rc1 {[%clk 0:00:10]}  Nb2 {[%clk 0:01:13]} 37. Rc2 {[%clk 0:00:10]}  b4 {[%clk 0:01:11]} 38. Ra1 {[%clk 0:00:10]}  f6 {[%clk 0:01:08]} 39. Ng4 {[%clk 0:00:08]}  Na4 {[%clk 0:01:03]} 40. Rxa4 {[%clk 0:00:05]}  Bb3 {[%clk 0:01:02]} 41. Bc4+ {[%clk 0:00:05]}  Bxc4 {[%clk 0:01:03]} 42. Rxc4 {[%clk 0:00:06]}  Nf8 {[%clk 0:01:02]} 43. Ne3 {[%clk 0:00:06]}  Ne6 {[%clk 0:01:02]} 44. Nf5 {[%clk 0:00:05]}  Rcb8 {[%clk 0:00:59]} 45. Rc2 {[%clk 0:00:05]}  Kf7 {[%clk 0:00:57]} 46. Nd4 {[%clk 0:00:05]}  Nxd4 {[%clk 0:00:54]} 47. Bxd4 {[%clk 0:00:06]}  Rd8 {[%clk 0:00:54]} 48. Be3 {[%clk 0:00:06]}  Rd3 {[%clk 0:00:51]} 49. Kf2 {[%clk 0:00:06]}  b3 {[%clk 0:00:48]} 50. Rb2 {[%clk 0:00:06]}  Rc3 {[%clk 0:00:47]} 51. Ke2 {[%clk 0:00:05]}  Rd8 {[%clk 0:00:47]} 52. Rxa5 {[%clk 0:00:04]}  Rdd3 {[%clk 0:00:48]} 53. Bf2 {[%clk 0:00:04]}  Rc2+ {[%clk 0:00:47]} 54. Rxc2 {[%clk 0:00:04]}  bxc2 {[%clk 0:00:48]} 55. Ra1 {[%clk 0:00:05]}  Rc3 {[%clk 0:00:49]} 56. Rc1 {[%clk 0:00:05]}  Ke6 {[%clk 0:00:48]} 57. Kd2 {[%clk 0:00:06]}  Rb3 {[%clk 0:00:49]} 58. Rxc2 {[%clk 0:00:06]}  Rb5 {[%clk 0:00:49]} 59. Be3 {[%clk 0:00:07]}  Rb1 {[%clk 0:00:50]} 60. Kd3 {[%clk 0:00:07]}  Rh1 {[%clk 0:00:51]} 61. h3 {[%clk 0:00:08]}  Rh2 {[%clk 0:00:52]} 62. Bf4 {[%clk 0:00:06]}  Rh1 {[%clk 0:00:53]} 63. Bd6 {[%clk 0:00:06]}  g5 {[%clk 0:00:53]} 64. Ke3 {[%clk 0:00:07]}  f5 {[%clk 0:00:54]} 65. exf5+ {[%clk 0:00:07]}  Kxf5 {[%clk 0:00:55]} 66. Kf2 {[%clk 0:00:08]}  Rd1 {[%clk 0:00:54]} 67. Re2 {[%clk 0:00:09]}  Rc1 {[%clk 0:00:54]} 68. Re5+ {[%clk 0:00:09]}  Kg6 {[%clk 0:00:55]} 69. Re6+ {[%clk 0:00:09]}  Kh5 {[%clk 0:00:55]} 70. g4+ {[%clk 0:00:09]}  Kh4 {[%clk 0:00:55]} 71. Rxh6# {[%clk 0:00:10]} 1-0


[Site "https://www.chess.com"]

[Event "Titled Tuesday Blitz July 4 Early 2023"]
[White "Romero Ruscalleda, Josep"]
[Black "Ezat, Mohamed"]
[WhiteFideId "2231859"]
[BlackFideId "10600906"]
[WhiteElo "2416"]
[BlackElo "2575"]
[Result "0-1"]
[Round "6"]
[TimeControl "180+2"]
[Date "2023.07.04"]
[WhiteClock "0:00:35"]
[BlackClock "0:00:27"]
[Board "129"]

1. e4 {[%clk 0:03:00]}  c6 {[%clk 0:02:42]} 2. Nc3 {[%clk 0:03:00]}  d5 {[%clk 0:02:41]} 3. Nf3 {[%clk 0:03:01]}  Bg4 {[%clk 0:02:40]} 4. h3 {[%clk 0:03:00]}  Bh5 {[%clk 0:02:40]} 5. d4 {[%clk 0:02:56]}  e6 {[%clk 0:02:39]} 6. Bf4 {[%clk 0:02:47]}  Bb4 {[%clk 0:02:37]} 7. exd5 {[%clk 0:02:44]}  cxd5 {[%clk 0:02:35]} 8. Bb5+ {[%clk 0:02:43]}  Nc6 {[%clk 0:02:34]} 9. O-O {[%clk 0:02:43]}  Nf6 {[%clk 0:02:33]} 10. a3 {[%clk 0:02:36]}  Bxc3 {[%clk 0:02:29]} 11. bxc3 {[%clk 0:02:36]}  O-O {[%clk 0:02:20]} 12. Bg5 {[%clk 0:02:28]}  h6 {[%clk 0:02:14]} 13. Bh4 {[%clk 0:02:22]}  g5 {[%clk 0:02:12]} 14. Bg3 {[%clk 0:02:22]}  Ne4 {[%clk 0:02:13]} 15. Qd3 {[%clk 0:02:08]}  Qa5 {[%clk 0:02:11]} 16. c4 {[%clk 0:01:52]}  Bg6 {[%clk 0:02:00]} 17. Bxc6 {[%clk 0:01:50]}  Nxg3 {[%clk 0:01:48]} 18. Qd1 {[%clk 0:01:17]}  Nxf1 {[%clk 0:01:29]} 19. Bxb7 {[%clk 0:01:16]}  Rab8 {[%clk 0:01:22]} 20. Rb1 {[%clk 0:01:17]}  Qc7 {[%clk 0:01:04]} 21. Ba6 {[%clk 0:01:03]}  Rxb1 {[%clk 0:01:01]} 22. Qxb1 {[%clk 0:01:03]}  dxc4 {[%clk 0:00:44]} 23. Qxf1 {[%clk 0:00:56]}  c3 {[%clk 0:00:38]} 24. Qe2 {[%clk 0:00:55]}  Rb8 {[%clk 0:00:34]} 25. Ne5 {[%clk 0:00:54]}  Rb1+ {[%clk 0:00:33]} 26. Kh2 {[%clk 0:00:53]}  f6 {[%clk 0:00:33]} 27. Qc4 {[%clk 0:00:50]}  Qxc4 {[%clk 0:00:31]} 28. Nxc4 {[%clk 0:00:47]}  Bxc2 {[%clk 0:00:31]} 29. Ne3 {[%clk 0:00:47]}  Be4 {[%clk 0:00:28]} 30. Bc4 {[%clk 0:00:46]}  Kf7 {[%clk 0:00:27]} 31. f3 {[%clk 0:00:35]}  c2 {[%clk 0:00:27]} 0-1


[Site "https://www.chess.com"]

[Event "Titled Tuesday Blitz July 4 Early 2023"]
[White "Kuznetsov, Mikhail"]
[Black "ArtemDyachuk"]
[WhiteFideId "4117190"]
[WhiteElo "2401"]
[BlackElo "2563"]
[Result "1-0"]
[Round "6"]
[TimeControl "180+2"]
[Date "2023.07.04"]
[WhiteClock "0:00:04"]
[BlackClock "0:00:03"]
[Board "132"]

1. Nf3 {[%clk 0:02:57]}  Nf6 {[%clk 0:02:55]} 2. g3 {[%clk 0:02:57]}  b5 {[%clk 0:02:54]} 3. Bg2 {[%clk 0:02:55]}  Bb7 {[%clk 0:02:54]} 4. O-O {[%clk 0:02:54]}  e6 {[%clk 0:02:53]} 5. d3 {[%clk 0:02:54]}  d5 {[%clk 0:02:51]} 6. c4 {[%clk 0:02:53]}  dxc4 {[%clk 0:02:45]} 7. dxc4 {[%clk 0:02:54]}  Qxd1 {[%clk 0:02:45]} 8. Rxd1 {[%clk 0:02:53]}  bxc4 {[%clk 0:02:46]} 9. Ne5 {[%clk 0:02:48]}  Bxg2 {[%clk 0:02:45]} 10. Kxg2 {[%clk 0:02:49]}  Nbd7 {[%clk 0:02:42]} 11. Nxc4 {[%clk 0:02:46]}  Nb6 {[%clk 0:02:43]} 12. Na5 {[%clk 0:02:36]}  Nfd5 {[%clk 0:02:34]} 13. a3 {[%clk 0:02:14]}  c5 {[%clk 0:02:30]} 14. e4 {[%clk 0:02:09]}  Nf6 {[%clk 0:02:30]} 15. f3 {[%clk 0:02:08]}  Be7 {[%clk 0:02:27]} 16. Be3 {[%clk 0:02:02]}  Nfd7 {[%clk 0:02:25]} 17. Nc3 {[%clk 0:01:55]}  Ne5 {[%clk 0:02:25]} 18. b3 {[%clk 0:01:52]}  O-O {[%clk 0:02:12]} 19. f4 {[%clk 0:01:46]}  Ng4 {[%clk 0:02:11]} 20. Bg1 {[%clk 0:01:42]}  f5 {[%clk 0:02:09]} 21. e5 {[%clk 0:01:38]}  Rac8 {[%clk 0:02:08]} 22. h3 {[%clk 0:01:37]}  Nh6 {[%clk 0:01:44]} 23. Nb5 {[%clk 0:01:35]}  c4 {[%clk 0:01:26]} 24. Nxa7 {[%clk 0:01:15]}  Rb8 {[%clk 0:01:24]} 25. N7c6 {[%clk 0:01:09]}  cxb3 {[%clk 0:00:50]} 26. Nxe7+ {[%clk 0:01:01]}  Kf7 {[%clk 0:00:50]} 27. Nec6 {[%clk 0:01:01]}  b2 {[%clk 0:00:44]} 28. Rab1 {[%clk 0:00:58]}  Na4 {[%clk 0:00:45]} 29. Nxb8 {[%clk 0:00:56]}  Rxb8 {[%clk 0:00:45]} 30. Bd4 {[%clk 0:00:53]}  Kg6 {[%clk 0:00:19]} 31. Nc4 {[%clk 0:00:37]}  Rb3 {[%clk 0:00:14]} 32. Nxb2 {[%clk 0:00:31]}  Rxa3 {[%clk 0:00:14]} 33. Nxa4 {[%clk 0:00:31]}  Rxa4 {[%clk 0:00:15]} 34. Bf2 {[%clk 0:00:30]}  Nf7 {[%clk 0:00:14]} 35. Rb6 {[%clk 0:00:28]}  Kh5 {[%clk 0:00:14]} 36. Rxe6 {[%clk 0:00:24]}  Ra2 {[%clk 0:00:10]} 37. Kf3 {[%clk 0:00:15]}  Ra3+ {[%clk 0:00:05]} 38. Be3 {[%clk 0:00:15]}  Nh6 {[%clk 0:00:01]} 39. g4+ {[%clk 0:00:12]}  Kh4 {[%clk 0:00:02]} 40. g5 {[%clk 0:00:05]}  Ng4 {[%clk 0:00:02]} 41. hxg4 {[%clk 0:00:05]}  fxg4+ {[%clk 0:00:03]} 42. Ke4 {[%clk 0:00:05]}  g3 {[%clk 0:00:02]} 43. g6 {[%clk 0:00:05]}  g2 {[%clk 0:00:02]} 44. gxh7 {[%clk 0:00:05]}  Kg3 {[%clk 0:00:02]} 45. h8=Q {[%clk 0:00:05]}  Ra4+ {[%clk 0:00:03]} 46. Bd4 {[%clk 0:00:05]}  Ra3 {[%clk 0:00:02]} 47. Qxg7+ {[%clk 0:00:05]}  Kh2 {[%clk 0:00:01]} 48. Rh6+ {[%clk 0:00:06]}  Rh3 {[%clk 0:00:01]} 49. Rxh3+ {[%clk 0:00:05]}  Kxh3 {[%clk 0:00:02]} 50. Bf2 {[%clk 0:00:06]}  g1=Q {[%clk 0:00:02]} 51. Rxg1 {[%clk 0:00:04]}  Kh2 {[%clk 0:00:03]} 52. Qg3# {[%clk 0:00:04]} 1-0


[Site "https://www.chess.com"]

[Event "Titled Tuesday Blitz July 4 Early 2023"]
[White "Buscar, Michael"]
[Black "Nefedov, Sergey"]
[WhiteFideId "2603616"]
[BlackFideId "24113417"]
[WhiteElo "2394"]
[BlackElo "2561"]
[Result "0-1"]
[Round "6"]
[TimeControl "180+2"]
[Date "2023.07.04"]
[WhiteClock "0:00:06"]
[BlackClock "0:01:03"]
[Board "133"]

1. d4 {[%clk 0:02:40]}  d5 {[%clk 0:02:52]} 2. c4 {[%clk 0:02:39]}  e6 {[%clk 0:02:53]} 3. cxd5 {[%clk 0:02:37]}  exd5 {[%clk 0:02:53]} 4. Nf3 {[%clk 0:02:34]}  c6 {[%clk 0:02:50]} 5. Nc3 {[%clk 0:02:35]}  Nf6 {[%clk 0:02:50]} 6. Bg5 {[%clk 0:02:30]}  Be6 {[%clk 0:02:50]} 7. e3 {[%clk 0:02:30]}  Nbd7 {[%clk 0:02:50]} 8. Bd3 {[%clk 0:02:30]}  Bd6 {[%clk 0:02:50]} 9. O-O {[%clk 0:02:30]}  Qb8 {[%clk 0:02:48]} 10. Bh4 {[%clk 0:02:21]}  O-O {[%clk 0:02:47]} 11. Bg3 {[%clk 0:02:21]}  Bxg3 {[%clk 0:02:46]} 12. hxg3 {[%clk 0:02:21]}  Qd6 {[%clk 0:02:46]} 13. Rb1 {[%clk 0:02:21]}  a6 {[%clk 0:02:45]} 14. b4 {[%clk 0:02:20]}  b5 {[%clk 0:02:45]} 15. a4 {[%clk 0:02:19]}  Nb6 {[%clk 0:02:46]} 16. a5 {[%clk 0:02:11]}  Nc4 {[%clk 0:02:46]} 17. Bxc4 {[%clk 0:02:11]}  bxc4 {[%clk 0:02:21]} 18. Na4 {[%clk 0:02:05]}  Bf5 {[%clk 0:02:20]} 19. Rb2 {[%clk 0:01:54]}  Nd7 {[%clk 0:02:19]} 20. Nc5 {[%clk 0:01:53]}  Rfb8 {[%clk 0:02:16]} 21. Qd2 {[%clk 0:01:31]}  Rb5 {[%clk 0:02:15]} 22. Re1 {[%clk 0:01:17]}  Qb8 {[%clk 0:01:41]} 23. Nxd7 {[%clk 0:00:44]}  Bxd7 {[%clk 0:01:41]} 24. Ne5 {[%clk 0:00:45]}  Qd6 {[%clk 0:01:38]} 25. Nxd7 {[%clk 0:00:27]}  Qxd7 {[%clk 0:01:38]} 26. Reb1 {[%clk 0:00:27]}  Rab8 {[%clk 0:01:38]} 27. Kf1 {[%clk 0:00:27]}  Re8 {[%clk 0:01:24]} 28. Ke1 {[%clk 0:00:26]}  Qg4 {[%clk 0:01:21]} 29. Qe2 {[%clk 0:00:25]}  Qe4 {[%clk 0:01:13]} 30. Qf3 {[%clk 0:00:16]}  Qxd4 {[%clk 0:01:11]} 31. Kf1 {[%clk 0:00:10]}  Qd3+ {[%clk 0:01:06]} 32. Kg1 {[%clk 0:00:10]}  c3 {[%clk 0:01:02]} 33. Rb3 {[%clk 0:00:06]}  c2 {[%clk 0:01:03]} 0-1


[Site "https://www.chess.com"]

[Event "Titled Tuesday Blitz July 4 Early 2023"]
[White "Frolyanov, Dmitry"]
[Black "Gaal, Zsoka"]
[WhiteFideId "4151976"]
[BlackFideId "777765"]
[WhiteElo "2543"]
[BlackElo "2384"]
[Result "1-0"]
[Round "6"]
[TimeControl "180+2"]
[Date "2023.07.04"]
[WhiteClock "0:01:38"]
[BlackClock "0:00:15"]
[Board "134"]

1. d4 {[%clk 0:03:00]}  f5 {[%clk 0:02:42]} 2. g3 {[%clk 0:02:59]}  Nf6 {[%clk 0:02:42]} 3. Bg2 {[%clk 0:03:00]}  g6 {[%clk 0:02:42]} 4. Nd2 {[%clk 0:02:56]}  Bg7 {[%clk 0:02:42]} 5. e4 {[%clk 0:02:56]}  fxe4 {[%clk 0:02:42]} 6. Nxe4 {[%clk 0:02:56]}  Nxe4 {[%clk 0:02:43]} 7. Bxe4 {[%clk 0:02:57]}  O-O {[%clk 0:02:43]} 8. Be3 {[%clk 0:02:46]}  c5 {[%clk 0:02:28]} 9. dxc5 {[%clk 0:02:43]}  Bxb2 {[%clk 0:02:25]} 10. Rb1 {[%clk 0:02:32]}  Bc3+ {[%clk 0:02:26]} 11. Kf1 {[%clk 0:02:32]}  d6 {[%clk 0:02:06]} 12. h4 {[%clk 0:02:13]}  dxc5 {[%clk 0:01:22]} 13. Qe2 {[%clk 0:02:12]}  Bg7 {[%clk 0:01:09]} 14. h5 {[%clk 0:02:08]}  Qd6 {[%clk 0:00:48]} 15. hxg6 {[%clk 0:02:02]}  hxg6 {[%clk 0:00:49]} 16. Nf3 {[%clk 0:01:59]}  Nc6 {[%clk 0:00:49]} 17. Ng5 {[%clk 0:01:52]}  Nd4 {[%clk 0:00:43]} 18. Qc4+ {[%clk 0:01:39]}  Be6 {[%clk 0:00:20]} 19. Nxe6 {[%clk 0:01:39]}  Qxe6 {[%clk 0:00:15]} 20. Bd5 {[%clk 0:01:38]} 1-0


[Site "https://www.chess.com"]